bitfinex/quotes_ETHUSD_20240828
["timestamp","ask_amount","ask_price","bid_price","bid_amount"]
[1724856568867,14.48157458,2492.6,2492.5,2.8e-06]
[1724856569116,2.3018,2493.5,2492.5,2.8e-06]
[1724856569292,8.02374,2492.6,2492.5,2.8e-06]
[1724856569628,8.02374,2492.6,2490.5,2.3251]
[1724856569629,4.01366,2491.5,2490.5,2.3251]
[1724856569909,4.01415,2491.2,2490.4,4.01538]
[1724856570077,4.01448,2491.0,2490.0,0.1237828]
[1724856570426,3.401376,2491.4,2490.0,0.1237828]
[1724856570567,4.01543,2490.4,2490.0,0.1237828]
[1724856570768,3.0,2491.3,2490.0,0.1237828]
[1724856570965,4.01271,2492.1,2490.0,0.0863775]
[1724856570966,4.01316,2491.8,2490.0,0.0863775]
[1724856571205,2.3534,2492.2,2490.0,0.0863775]
[1724856571206,4.01312,2491.9,2491.0,4.01444]
[1724856571502,6.36592,2492.2,2490.4,2.373]
[1724856571503,0.41756886,2492.2,2490.4,2.373]
[1724856571697,2.3534,2492.8,2490.5,0.2373]
[1724856571698,4.01182,2492.7,2490.5,0.2373]
[1724856571902,4.01244,2492.3,2491.5,4.01351]
[1724856572159,0.23534,2492.7,2491.5,0.401351]
[1724856572448,0.4918953,2493.5,2491.5,2.89531152]
[1724856572663,0.4918953,2493.1,2492.0,4.01282]
[1724856572847,2.413,2493.9,2492.5,4.01188]
[1724856573042,0.4918953,2493.6,2492.9,4.01124]
[1724856573205,0.28302216,2493.8,2492.9,4.01124]
[1724856573206,4.29296216,2493.8,2492.9,4.01124]
[1724856573560,0.5101453,2494.1,2492.9,4.01126]
[1724856573853,0.5101453,2493.7,2492.9,4.01133]
[1724856574001,4.00967,2494.0,2493.3,4.01071]
[1724856574002,4.00962,2494.0,2493.3,4.01071]
[1724856574203,0.5101453,2494.0,2493.1,0.08021627]
[1724856574411,0.5101453,2494.0,2493.1,4.01101]
[1724856574615,4.5198953,2494.0,2493.1,4.01101]
[1724856574914,6.90343,2494.7,2493.2,0.4813122]
[1724856574915,0.5101453,2494.6,2493.2,0.4813122]
[1724856575102,2.4943,2494.7,2492.2,0.6810422]
[1724856575103,0.5101453,2494.2,2492.2,0.6810422]
[1724856575407,4.01027,2493.6,2492.8,4.01152]
[1724856575605,4.00986,2493.9,2492.5,0.08022091]
[1724856575802,2.9121024,2494.7,2493.2,4.0109]
[1724856575803,4.00916,2494.3,2493.2,4.0109]
[1724856576002,4.00916,2494.3,2493.6,4.01024]
[1724856576231,4.34006024,2494.6,2493.6,4.01025]
[1724856576232,4.00904,2494.4,2493.6,4.01025]
[1724856576413,4.00942,2494.2,2493.7,0.09678154]
[1724856576630,4.410362,2494.2,2493.7,0.09678154]
[1724856576832,4.01066,2493.4,2492.1,0.401282]
[1724856576999,2.707066,2493.4,2492.1,0.401282]
[1724856577204,4.01203,2492.6,2491.8,4.01316]
[1724856577406,4.01127,2493.0,2492.2,4.0124]
[1724856577606,4.01127,2493.0,2491.9,0.08025629]
[1724856577607,2.77630671,2493.4,2491.9,4.01296]
[1724856577853,3.67868867,2493.3,2491.7,4.01325]
[1724856578022,4.01247,2492.3,2491.5,4.01357]
[1724856578225,4.01247,2492.3,2491.6,4.01342]
[1724856578424,4.01163,2492.8,2492.0,4.01283]
[1724856578671,4.01163,2492.8,2491.1,4.01417]
[1724856578672,4.01246,2492.3,2491.0,4.01438]
[1724856578952,4.01228,2492.4,2491.2,4.01411]
[1724856579156,4.01255,2492.2,2491.5,4.01354]
[1724856579324,4.01228,2492.4,2491.5,4.01354]
[1724856579524,4.01189,2492.6,2491.8,4.01304]
[1724856579728,4.01189,2492.6,2491.5,0.401354]
[1724856579729,4.01249,2492.3,2491.5,4.01359]
[1724856579927,2.4693,2492.6,2490.7,0.32115525]
[1724856579928,2.870489,2492.6,2490.7,0.32115525]
[1724856580137,0.4776453,2492.5,2490.7,0.32115525]
[1724856580446,4.01369,2491.5,2490.7,0.0863775]
[1724856580766,4.01457,2491.0,2490.7,0.0863775]
[1724856580928,4.01343,2491.7,2490.7,4.1012475]
[1724856581114,4.01292,2492.0,2491.3,4.01384]
[1724856581313,5.62631526,2491.9,2490.7,0.0863775]
[1724856581513,6.02760726,2491.9,2490.9,4.01445]
[1724856581759,4.01338,2491.7,2490.7,0.0863775]
[1724856581963,2.4916,2492.3,2490.9,2.4559]
[1724856582257,4.01214,2492.5,2491.8,4.01314]
[1724856582528,4.01247,2492.3,2491.4,4.01368]
[1724856582660,4.01177,2492.7,2490.9,2.3325]
[1724856582862,4.01177,2492.7,2490.8,4.01471]
[1724856582863,4.01298,2492.0,2490.8,4.01471]
[1724856583058,4.01413,2491.2,2490.6,4.01503]
[1724856583299,4.01413,2491.2,2490.3,6.34794]
[1724856583300,4.01294,2492.0,2491.3,4.01384]
[1724856583466,4.01294,2492.0,2491.4,4.01378]
[1724856583687,4.01294,2492.0,2491.4,0.09009858]
[1724856584030,4.01306,2491.9,2491.3,4.01392]
[1724856584343,4.01306,2491.9,2491.1,4.01418]
[1724856584344,4.01348,2491.6,2491.5,0.09002899]
[1724856584494,4.01348,2491.6,2490.7,0.0863775]
[1724856584495,4.01364,2491.5,2490.8,4.01466]
[1724856584697,4.01401,2491.3,2490.7,0.0863775]
[1724856584896,4.01445,2491.0,2490.9,0.09044664]
[1724856585094,4.01445,2491.0,2490.7,0.0863775]
[1724856585095,8.02954,2490.8,2490.7,0.0863775]
[1724856585619,4.01477,2490.8,2490.7,0.0863775]
[1724856586036,4.01477,2490.8,2490.7,0.17696341]
[1724856586037,8.02954,2490.8,2490.7,0.17696341]
[1724856586238,12.04431,2490.8,2490.7,0.0863775]
[1724856586385,12.847264,2490.8,2490.7,0.0863775]
[1724856586823,13.3249093,2490.8,2490.7,0.0863775]
[1724856587023,19.862034,2490.8,2490.7,0.0863775]
[1724856587223,20.3396793,2490.8,2490.7,0.0863775]
[1724856587529,4.01477,2490.8,2490.7,0.0863775]
[1724856587902,4.01344,2491.7,2490.7,0.17928657]
[1724856587903,0.4776453,2491.6,2490.7,0.17928657]
[1724856588119,4.01477,2490.8,2490.7,0.0863775]
[1724856588418,4.0145,2491.0,2490.7,0.0863775]
[1724856588938,12.04431,2490.8,2490.7,0.0863775]
[1724856589998,16.05908,2490.8,2490.7,0.0863775]
[1724856590161,8.02954,2490.8,2490.7,7.5e-06]
[1724856590614,15.04431,2490.8,2490.7,7.5e-06]
[1724856590968,4.01477,2490.8,2490.7,7.5e-06]
[1724856591182,8.02954,2490.8,2490.7,7.5e-06]
[1724856591446,4.01463,2490.9,2490.7,7.5e-06]
[1724856591750,4.01477,2490.8,2490.7,7.5e-06]
[1724856592243,12.04431,2490.8,2490.7,7.5e-06]
[1724856592453,18.52208,2490.8,2490.7,7.5e-06]
[1724856592658,14.50731,2490.8,2490.7,7.5e-06]
[1724856592812,4.01425,2491.2,2490.7,7.5e-06]
[1724856593014,4.54459986,2491.7,2490.7,7.5e-06]
[1724856593237,4.0138,2491.4,2490.7,7.5e-06]
[1724856593455,4.01356,2491.6,2490.7,7.5e-06]
[1724856593613,4.01456,2491.0,2490.7,7.5e-06]
[1724856593825,2.463,2491.8,2490.7,7.5e-06]
[1724856594076,2.463,2492.4,2490.7,7.5e-06]
[1724856594379,2.463,2492.9,2491.1,2.333]
[1724856594524,2.463,2492.9,2491.4,4.01377]
[1724856594525,4.01224,2492.4,2491.4,4.01377]
[1724856594723,4.01263,2492.2,2491.5,4.01363]
[1724856594923,4.01263,2492.2,2491.4,4.01377]
[1724856594924,4.01279,2492.1,2491.4,4.01375]
[1724856595153,4.01253,2492.2,2491.3,4.01389]
[1724856595353,4.01196,2492.6,2491.1,6.34717]
[1724856595622,4.0132,2491.8,2491.1,6.34717]
[1724856595823,4.01196,2492.6,2491.2,0.08027528]
[1724856595824,4.01198,2492.6,2491.2,0.08027528]
[1724856596023,4.01198,2492.6,2491.9,4.0129]
[1724856596249,4.01198,2492.6,2492.0,4.01281]
[1724856596448,4.01063,2493.4,2492.0,2.56075588]
[1724856596646,4.01034,2493.6,2492.7,4.01169]
[1724856596925,4.01037,2493.6,2492.7,4.01169]
[1724856597377,4.01037,2493.6,2492.9,4.01128]
[1724856597661,4.00996,2493.8,2493.1,4.01091]
[1724856597823,4.00934,2494.2,2493.5,4.01036]
[1724856598023,4.00973,2494.0,2493.1,4.01092]
[1724856598267,4.00949,2494.1,2493.3,4.01062]
[1724856598569,4.00898,2494.4,2493.7,4.00998]
[1724856598783,4.00868,2494.6,2493.8,4.10357632]
[1724856598920,0.801722,2494.6,2493.8,4.10357632]
[1724856599121,4.00978,2493.9,2493.0,2.3525]
[1724856599470,4.00809,2495.0,2493.3,4.01064]
[1724856599471,4.00949,2494.1,2493.3,4.01064]
[1724856599970,4.00962,2494.0,2493.4,0.09393422]
[1724856600275,0.3069009,2494.9,2493.4,0.09393422]
[1724856600581,0.3069009,2494.9,2494.1,4.00934]
[1724856600582,4.00825,2494.9,2494.1,4.00934]
[1724856600734,4.00825,2494.9,2494.2,0.09337851]
[1724856600735,4.00892,2494.5,2494.2,0.09337851]
[1724856600939,4.00892,2494.5,2493.8,4.00989]
[1724856601159,4.00892,2494.5,2493.3,6.28396]
[1724856601160,0.3069009,2495.3,2493.9,0.09358686]
[1724856601334,0.3069009,2495.3,2491.9,0.40129]
[1724856601335,4.01072,2493.4,2492.4,4.01214]
[1724856601522,4.01072,2493.4,2492.2,2.2733]
[1724856601523,4.00999,2493.8,2492.9,4.01136]
[1724856601723,6.36959,2494.3,2493.0,4.09911321]
[1724856601965,4.00989,2493.9,2493.2,4.01087]
[1724856602148,3.0,2494.5,2493.1,2.2733]
[1724856602358,4.01,2493.8,2493.2,0.08782421]
[1724856602521,4.00973,2494.0,2493.2,0.08782421]
[1724856602726,4.00942,2494.2,2492.6,2.2733]
[1724856603032,4.00942,2494.2,2492.8,4.01143]
[1724856603233,0.400867,2494.5,2493.9,4.00967]
[1724856603234,4.00883,2494.5,2493.9,4.00967]
[1724856603437,4.00883,2494.5,2493.7,4.01004]
[1724856603438,4.00825,2494.9,2493.7,4.01004]
[1724856603657,0.400772,2495.1,2494.0,0.08726841]
[1724856603869,4.00917,2494.3,2493.6,2.2551]
[1724856604087,4.008,2495.1,2494.1,0.08719896]
[1724856604287,4.008,2495.1,2494.5,4.00871]
[1724856604573,2.4259,2496.2,2494.8,4.00827]
[1724856604780,8.01502,2495.4,2494.9,0.08664355]
[1724856604937,8.01502,2495.4,2494.5,4.08890464]
[1724856604938,4.809002,2495.4,2494.5,4.00874]
[1724856605143,4.00709,2495.6,2494.7,4.00847]
[1724856605473,2.4259,2496.2,2495.6,4.00703]
[1724856605474,4.00615,2496.2,2495.6,4.00703]
[1724856605625,4.0044,2497.3,2495.7,4.00688]
[1724856605626,4.00467,2497.1,2495.7,4.00688]
[1724856605833,4.00556,2496.6,2495.9,4.00646]
[1724856606126,4.00556,2496.6,2495.3,0.2374]
[1724856606127,4.42145194,2497.1,2496.4,4.0057]
[1724856606329,1.606866,2497.8,2494.8,0.450847]
[1724856606330,0.3607119,2497.3,2496.5,0.08553382]
[1724856606567,4.00376,2497.7,2496.4,4.00566]
[1724856606728,4.00376,2497.7,2496.4,6.30886]
[1724856606729,4.00459,2497.2,2496.4,6.30886]
[1724856607066,4.00391,2497.6,2496.6,4.00533]
[1724856607067,4.00419,2497.4,2496.6,4.00533]
[1724856607374,4.404306,2497.6,2496.9,4.00493]
[1724856607594,9.62878526,2498.5,2497.4,4.00402]
[1724856607595,4.00274,2498.3,2497.4,4.00402]
[1724856607739,4.00258,2498.4,2497.7,4.00366]
[1724856607946,4.0031,2498.1,2497.8,0.07898434]
[1724856608275,4.3750319,2498.6,2496.7,4.00528]
[1724856608276,4.00407,2497.5,2496.7,4.00528]
[1724856608425,4.0038,2497.7,2496.8,4.00505]
[1724856608765,4.00336,2497.9,2497.0,4.00469]
[1724856608975,4.00281,2498.3,2497.1,0.07088263]
[1724856608976,4.00413,2497.5,2497.1,0.07088263]
[1724856609125,4.00413,2497.5,2496.0,4.00627]
[1724856609126,4.43999319,2498.5,2497.2,2.3651]
[1724856609441,4.43999319,2498.5,2497.3,0.07074408]
[1724856609442,4.00332,2498.0,2497.3,0.07074408]
[1724856609636,4.00307,2498.1,2497.4,4.00404]
[1724856609840,4.00288,2498.2,2497.4,4.00414]
[1724856610044,4.00288,2498.2,2497.2,2.3651]
[1724856610045,4.00364,2497.8,2497.5,0.07064617]
[1724856610244,4.44413086,2498.2,2497.5,0.07064617]
[1724856610447,2.2781,2499.1,2497.1,4.00464]
[1724856610448,0.40932857,2498.4,2497.1,4.00464]
[1724856610739,4.00331,2498.0,2497.2,0.0800799]
[1724856610940,0.40932857,2498.4,2497.3,0.0707847]
[1724856611141,4.00469,2497.1,2496.4,4.00572]
[1724856611473,0.40932857,2498.0,2496.5,0.06875126]
[1724856611474,4.00448,2497.2,2496.5,0.06875126]
[1724856611639,4.00403,2497.5,2496.5,0.1488466]
[1724856611828,4.00444,2497.3,2496.5,0.06875126]
[1724856612029,0.40932857,2498.2,2496.6,4.00531]
[1724856612247,5.4365,2498.4,2497.3,4.00421]
[1724856612248,2.4365,2498.4,2497.3,4.00421]
[1724856612566,2.4365,2498.4,2496.7,4.0853531]
[1724856612567,4.00367,2497.8,2497.1,4.00451]
[1724856612795,4.00309,2498.1,2497.3,4.00421]
[1724856612970,4.00248,2498.5,2497.7,4.00354]
[1724856613277,8.0037,2498.9,2497.8,0.14808705]
[1724856613567,4.41098857,2499.0,2497.8,0.06802646]
[1724856613773,0.40932857,2498.9,2497.8,0.06802646]
[1724856613944,4.00322,2498.0,2497.3,10.3914]
[1724856614147,4.00322,2498.0,2497.4,0.06830347]
[1724856614384,4.00246,2498.5,2497.4,0.06830347]
[1724856614543,4.00308,2498.1,2497.5,4.00389]
[1724856614734,4.00346,2497.9,2497.6,0.06816495]
[1724856614928,4.00346,2497.9,2497.3,6.38719]
[1724856614929,4.00368,2497.7,2497.3,2.3829]
[1724856615125,4.00346,2497.9,2497.4,0.06830347]
[1724856615327,4.00346,2497.9,2497.1,4.00454]
[1724856615328,4.0038,2497.7,2497.1,4.00462]
[1724856615566,4.00343,2497.9,2497.1,4.00453]
[1724856615871,4.00432,2497.3,2497.2,0.06844201]
[1724856616041,0.400343,2497.9,2497.2,0.06844201]
[1724856616246,4.00355,2497.8,2497.2,4.00434]
[1724856616574,4.00253,2498.5,2496.9,2.36]
[1724856616575,4.00267,2498.4,2497.3,0.08007656]
[1724856616781,4.00205,2498.8,2497.6,4.0038]
[1724856616928,4.00166,2499.0,2498.3,4.00268]
[1724856617271,4.1438298,2499.4,2497.7,4.71298625]
[1724856617272,4.1438098,2499.4,2498.6,4.00221]
[1724856617485,0.55720078,2499.4,2498.0,4.00308]
[1724856617795,4.00203,2498.8,2498.2,4.00287]
[1724856617929,4.00218,2498.7,2498.1,0.06781876]
[1724856618149,4.00218,2498.7,2498.2,0.06774954]
[1724856618150,4.00229,2498.6,2498.2,0.06774954]
[1724856618384,4.0016,2499.0,2498.0,0.08005046]
[1724856618534,0.1428198,2499.4,2498.4,4.00249]
[1724856618535,4.00154,2499.1,2498.4,4.00249]
[1724856618729,4.00118,2499.3,2498.7,4.00197]
[1724856618973,4.00118,2499.3,2498.8,0.06733432]
[1724856619126,4.00118,2499.3,2498.6,4.00212]
[1724856619127,4.1438298,2499.4,2498.7,4.08197376]
[1724856619336,4.1439098,2499.4,2498.8,0.14736416]
[1724856619575,4.00176,2498.9,2498.8,0.06733432]
[1724856619746,4.00298,2498.2,2497.5,4.0039]
[1724856619944,4.00262,2498.4,2497.7,4.00364]
[1724856620166,4.00304,2498.1,2497.8,0.06703969]
[1724856620375,4.00382,2497.7,2497.4,2.4432]
[1724856620689,4.00384,2497.6,2497.5,0.06724744]
[1724856620836,12.01152,2497.6,2497.5,0.06724744]
[1724856621035,4.00497,2496.9,2496.4,2.258]
[1724856621242,4.00616,2496.2,2495.4,6.26526]
[1724856621491,4.00685,2495.8,2494.9,6.26611]
[1724856621671,4.0069,2495.7,2495.1,4.0077]
[1724856621879,4.00612,2496.2,2494.5,2.2852]
[1724856622074,2.3552,2496.3,2494.2,4.00928]
[1724856622075,4.00846,2494.8,2494.2,4.00928]
[1724856622257,4.00808,2495.0,2494.3,4.009]
[1724856622457,4.00808,2495.0,2494.3,0.400928]
[1724856622671,4.00775,2495.2,2494.4,4.00896]
[1724856622871,4.00798,2495.1,2494.4,4.00896]
[1724856623058,4.00741,2495.4,2494.7,4.00849]
[1724856623389,4.0074,2495.4,2494.6,4.00865]
[1724856623687,4.0074,2495.4,2494.4,4.00896]
[1724856623688,4.00739,2495.4,2494.4,0.08017017]
[1724856623874,4.00653,2496.0,2495.0,4.00796]
[1724856624066,5.3552,2496.3,2495.1,4.408616]
[1724856624261,4.00749,2495.4,2494.6,4.00864]
[1724856624451,4.00714,2495.6,2494.9,4.00817]
[1724856624844,4.00674,2495.8,2494.9,4.00817]
[1724856625045,4.00659,2495.9,2495.1,4.00772]
[1724856625289,4.00606,2496.3,2495.3,4.00752]
[1724856625443,4.006,2496.3,2495.4,4.00736]
[1724856625646,4.00626,2496.1,2495.4,4.00736]
[1724856626245,4.00596,2496.3,2495.5,4.08732307]
[1724856626446,4.00612,2496.2,2495.5,4.48807907]
[1724856626745,4.43060253,2496.6,2495.1,4.00781]
[1724856626945,4.00706,2495.6,2494.8,4.00818]
[1724856627145,4.43142253,2496.1,2494.6,0.22536]
[1724856627383,4.00788,2495.1,2494.6,0.22536]
[1724856627600,4.00753,2495.3,2494.6,0.22536]
[1724856627601,4.00772,2495.2,2494.6,0.22536]
[1724856627748,4.00724,2495.5,2493.9,2.4106]
[1724856627948,3.44314225,2496.0,2492.3,37.05]
[1724856627949,4.00976,2494.0,2493.4,2.4106]
[1724856628147,4.00934,2494.2,2493.5,0.07163292]
[1724856628448,3.0,2494.7,2493.5,0.07163292]
[1724856628652,0.639498,2494.8,2493.5,0.07163292]
[1724856628848,4.00879,2494.6,2493.5,0.15184035]
[1724856629083,0.48606111,2494.7,2493.5,0.07163292]
[1724856629280,4.01008,2493.8,2493.0,4.01112]
[1724856629596,4.01008,2493.8,2493.1,0.07366053]
[1724856629597,4.01039,2493.6,2493.1,0.07366053]
[1724856629747,4.0107,2493.4,2493.1,0.07366053]
[1724856629950,4.00968,2494.0,2492.8,4.01144]
[1724856629951,8.02068,2493.6,2492.8,4.01144]
[1724856630295,3.0,2494.1,2492.9,0.15402213]
[1724856630296,4.00992,2493.9,2492.9,0.15402213]
[1724856630466,4.00963,2494.0,2493.3,4.01061]
[1724856630793,4.009,2494.4,2493.6,4.01013]
[1724856630956,4.00948,2494.1,2493.7,0.07324361]
[1724856631156,4.00948,2494.1,2493.3,0.401061]
[1724856631157,4.0087,2494.6,2493.3,4.01072]
[1724856631358,4.00948,2494.1,2493.2,4.0109]
[1724856631673,8.02116,2493.4,2493.3,0.07352154]
[1724856631885,7.18349898,2493.4,2493.3,0.07352154]
[1724856632068,4.01139,2492.9,2492.2,4.01241]
[1724856632399,4.01172,2492.7,2491.9,4.01294]
[1724856632566,4.01172,2492.7,2491.9,8.0258]
[1724856632772,7.01082,2493.3,2491.8,0.22694]
[1724856632773,4.01097,2493.2,2492.5,4.01192]
[1724856632962,4.01107,2493.1,2492.6,0.12604598]
[1724856633307,4.01123,2493.0,2492.3,4.01234]
[1724856633587,4.01033,2493.6,2492.3,4.01234]
[1724856633588,4.01042,2493.6,2492.4,0.08024099]
[1724856633747,4.01044,2493.5,2492.8,4.01141]
[1724856633951,4.01044,2493.5,2492.9,0.12583115]
[1724856634153,4.01046,2493.5,2492.9,0.12583115]
[1724856634354,0.41695325,2493.9,2493.3,4.01074]
[1724856634564,4.01007,2493.8,2493.4,0.12547321]
[1724856634793,4.01039,2493.6,2493.0,4.01121]
[1724856635021,4.00912,2494.4,2493.5,4.01031]
[1724856635156,4.0099,2493.9,2493.6,0.12533008]
[1724856635351,4.00995,2493.8,2493.1,4.01105]
[1724856635595,4.01008,2493.8,2493.2,0.12561637]
[1724856635750,1.11875311,2494.2,2493.2,0.12561637]
[1724856635751,4.0098,2493.9,2493.2,0.12561637]
[1724856636101,4.0105,2493.5,2493.2,0.12561637]
[1724856636259,2.3178,2494.3,2493.2,0.12561637]
[1724856636260,4.01074,2493.3,2493.2,0.12561637]
[1724856636454,4.01074,2493.3,2492.5,4.01201]
[1724856636455,4.01078,2493.3,2492.5,4.01201]
[1724856636690,4.01078,2493.3,2492.6,4.01176]
[1724856637154,0.48606111,2493.8,2492.4,0.646157]
[1724856637350,0.48606111,2493.8,2492.2,2.4493]
[1724856637351,4.00972,2494.0,2493.3,4.01072]
[1724856637575,4.00998,2493.8,2493.1,4.01096]
[1724856637915,4.01149,2492.9,2492.2,2.4493]
[1724856638057,4.01149,2492.9,2492.3,4.01225]
[1724856638376,4.01113,2493.1,2492.5,4.01188]
[1724856638578,4.01016,2493.7,2492.6,0.08023376]
[1724856638789,0.48606111,2494.1,2492.7,4.01161]
[1724856638981,0.48606111,2494.1,2492.4,4.01209]
[1724856638982,4.01084,2493.3,2492.4,4.01209]
[1724856639189,4.01084,2493.3,2492.2,2.4493]
[1724856639190,4.01162,2492.8,2492.2,4.01239]
[1724856639504,0.401084,2493.2,2492.2,4.01244]
[1724856639687,4.01176,2492.7,2492.0,4.01271]
[1724856639861,4.01203,2492.6,2491.8,4.01309]
[1724856640060,4.0123,2492.4,2491.8,4.01309]
[1724856640398,4.01345,2491.7,2491.5,0.005]
[1724856640783,4.01308,2491.9,2491.5,0.005]
[1724856640960,4.01276,2492.1,2491.5,0.005]
[1724856641164,4.01334,2491.7,2491.5,0.005]
[1724856641375,4.01284,2492.0,2491.5,0.005]
[1724856641577,0.580553,2492.2,2491.5,0.005]
[1724856641797,4.01348,2491.6,2491.5,0.005]
[1724856642215,8.428308,2491.6,2491.5,0.005]
[1724856642673,0.580553,2492.2,2491.5,0.12159819]
[1724856643017,8.02696,2491.6,2491.5,0.005]
[1724856643354,12.04044,2491.6,2491.5,0.005]
[1724856643788,8.02696,2491.6,2491.5,0.005]
[1724856644157,8.02696,2491.6,2491.5,0.12159819]
[1724856644561,8.829656,2491.6,2491.5,0.005]
[1724856644863,12.843136,2491.6,2491.5,0.005]
[1724856645060,15.843136,2491.6,2491.5,0.005]
[1724856645260,18.114936,2491.6,2491.5,0.005]
[1724856645697,6.074496,2491.6,2488.1,0.18500389]
[1724856646005,4.01605,2490.1,2489.6,0.11796119]
[1724856646212,8.03207,2490.1,2489.6,0.11796119]
[1724856646364,2.2743,2490.9,2489.6,0.11796119]
[1724856646365,8.03308,2489.7,2489.6,0.11796119]
[1724856646572,4.016,2490.1,2489.2,0.08034974]
[1724856646906,2.2743,2490.9,2489.6,2.4541]
[1724856646907,4.01501,2490.7,2489.6,2.4541]
[1724856647212,4.01291,2492.0,2490.8,4.01475]
[1724856647417,4.01312,2491.9,2491.2,4.01396]
[1724856647712,4.01312,2491.9,2491.3,0.11834867]
[1724856647870,6.28309,2492.1,2491.4,4.01369]
[1724856647871,4.01295,2492.0,2491.4,4.01369]
[1724856648069,4.01241,2492.3,2491.4,4.01369]
[1724856648269,4.0111,2493.1,2491.6,4.01336]
[1724856648499,4.01251,2492.3,2491.6,4.01336]
[1724856648698,4.0111,2493.1,2491.7,0.11806194]
[1724856648899,4.0119,2492.6,2492.0,4.01272]
[1724856649070,4.01183,2492.7,2492.0,4.01272]
[1724856649271,4.01143,2492.9,2492.1,0.19802448]
[1724856649512,4.59458559,2493.3,2492.4,4.01218]
[1724856649819,4.59458559,2493.3,2492.6,4.01176]
[1724856649820,4.01076,2493.3,2492.6,4.01176]
[1724856650113,4.01076,2493.3,2492.4,4.413368]
[1724856650114,2.93159725,2493.7,2492.7,0.11734552]
[1724856650350,0.58379725,2493.2,2492.7,0.11734552]
[1724856650621,4.01015,2493.7,2492.8,4.01155]
[1724856650802,4.00951,2494.1,2492.9,4.09143474]
[1724856650968,4.55630225,2493.9,2493.2,4.01081]
[1724856651164,4.55630225,2493.9,2493.0,4.66915347]
[1724856651165,4.00994,2493.8,2493.3,0.11691595]
[1724856651377,4.49160994,2494.4,2493.4,2.2613]
[1724856651378,4.00936,2494.2,2493.4,2.2613]
[1724856651580,4.42585944,2494.5,2493.8,4.0099]
[1724856651871,4.00866,2494.6,2493.9,4.20644547]
[1724856652213,4.00839,2494.8,2493.9,0.11648658]
[1724856652392,4.00839,2494.8,2493.9,0.19666968]
[1724856652608,0.41679404,2495.1,2493.9,0.61733065]
[1724856652770,0.41679404,2495.1,2494.0,6.43096]
[1724856652976,4.00863,2494.7,2494.1,0.11456101]
[1724856653286,4.00761,2495.3,2494.3,4.00908]
[1724856653497,4.00746,2495.4,2494.4,0.08015874]
[1724856653674,4.00808,2495.0,2494.4,0.11434643]
[1724856653875,4.00832,2494.9,2494.2,4.00916]
[1724856654159,4.00802,2495.0,2494.5,0.11427492]
[1724856654281,8.01998,2493.8,2491.5,3.15935273]
[1724856654480,4.01078,2493.3,2491.9,4.01295]
[1724856654679,4.01157,2492.8,2492.1,4.01252]
[1724856654911,4.01199,2492.6,2491.9,4.01295]
[1724856655119,4.01199,2492.6,2491.7,4.01328]
[1724856655276,4.01199,2492.6,2491.7,0.636698]
[1724856655481,4.01187,2492.6,2491.7,8.02642]
[1724856655721,4.01204,2492.5,2491.8,4.09335545]
[1724856655930,4.0116,2492.8,2492.1,4.01252]
[1724856656084,9.689778,2493.3,2491.9,0.40933554]
[1724856656085,4.01212,2492.5,2491.9,0.40933554]
[1724856656428,4.01281,2492.1,2491.5,2.3537]
[1724856656728,4.01131,2493.0,2491.8,4.01305]
[1724856656729,4.01129,2493.0,2491.8,4.01305]
[1724856656925,4.01153,2492.9,2492.2,4.0125]
[1724856657334,4.01108,2493.1,2492.3,4.01232]
[1724856657486,4.01108,2493.1,2492.4,4.01206]
[1724856657487,4.01123,2493.0,2492.4,4.01206]
[1724856657686,4.01079,2493.3,2492.6,4.01185]
[1724856658087,4.01079,2493.3,2492.6,4.01184]
[1724856658286,4.01051,2493.5,2492.8,4.01142]
[1724856658510,4.01075,2493.3,2492.7,0.18389708]
[1724856658694,4.01051,2493.5,2492.9,0.10353228]
[1724856658910,4.01051,2493.5,2492.8,4.11514388]
[1724856659110,4.00984,2493.9,2493.3,4.01061]
[1724856659111,4.00987,2493.9,2493.3,4.01061]
[1724856659334,4.00987,2493.9,2493.0,0.10346068]
[1724856659335,4.01026,2493.7,2493.0,4.01112]
[1724856659657,4.00994,2493.8,2492.6,4.01185]
[1724856659860,4.00935,2494.2,2492.4,6.42935]
[1724856659861,4.01119,2493.1,2492.4,6.42935]
[1724856660024,4.01177,2492.7,2492.0,6.39693]
[1724856660342,4.0098,2493.9,2492.2,4.01249]
[1724856660343,4.01148,2492.9,2492.2,4.01249]
[1724856660502,4.01112,2493.1,2492.3,0.08024033]
[1724856660705,4.01042,2493.6,2492.2,4.01247]
[1724856660928,4.0114,2492.9,2492.2,8.02488]
[1724856661143,4.01136,2493.0,2492.2,4.01241]
[1724856661361,0.401042,2493.5,2492.6,4.01185]
[1724856661362,4.01089,2493.3,2492.6,4.01185]
[1724856661629,0.400972,2493.9,2492.8,2.438]
[1724856661630,4.01016,2493.7,2492.8,2.438]
[1724856661834,4.00984,2493.9,2493.2,4.01077]
[1724856662001,4.47359744,2495.8,2493.6,4.0101]
[1724856662002,4.00925,2494.3,2493.6,4.0101]
[1724856662206,4.00925,2494.3,2492.7,4.01162]
[1724856662207,2.3084,2491.6,2490.1,4.01587]
[1724856662451,8.0289,2491.0,2490.9,0.82192318]
[1724856662824,12.04335,2491.0,2490.9,0.82192318]
[1724856663206,16.0578,2491.0,2490.9,3.18e-06]
[1724856663453,8.02922,2490.9,2490.8,7.95e-06]
[1724856663619,11.02922,2490.9,2490.8,7.95e-06]
[1724856663809,11.02922,2490.9,2489.2,3.99704462]
[1724856663810,4.01525,2490.5,2489.8,4.50113966]
[1724856664009,4.01553,2490.4,2489.8,0.48476966]
[1724856664345,1.2634973,2490.8,2490.0,4.01592]
[1724856664517,4.01521,2490.6,2490.0,0.48476966]
[1724856664724,4.01491,2490.8,2490.1,0.45369216]
[1724856664924,4.01491,2490.8,2490.1,4.46957216]
[1724856665120,4.01455,2491.0,2490.0,4.46613197]